[Event "Titled Tuesday Blitz March 07 Late 2023"]
[White "Adewumi, Tanitoluwa"]
[Black "Ozates, Tuna"]
[WhiteFideId "30966396"]
[BlackFideId "6354521"]
[WhiteElo "2742"]
[BlackElo "2151"]
[Result "1-0"]
[Round "09"]
[TimeControl "180+2"]
[Date "2023.03.07"]
[WhiteClock "0:00:05"]
[BlackClock "0:00:03"]

1. e4 {[%clk 0:02:53]}  e5 {[%clk 0:02:57]} 2. Nf3 {[%clk 0:02:47]}  Nc6 {[%clk 0:02:55]} 3. Nc3 {[%clk 0:02:46]}  Nf6 {[%clk 0:02:55]} 4. Bb5 {[%clk 0:02:45]}  Bd6 {[%clk 0:02:54]} 5. Bxc6 {[%clk 0:02:39]}  dxc6 {[%clk 0:02:51]} 6. d3 {[%clk 0:02:39]}  h6 {[%clk 0:02:50]} 7. Rg1 {[%clk 0:02:37]}  Be6 {[%clk 0:02:47]} 8. h3 {[%clk 0:02:25]}  Qe7 {[%clk 0:02:42]} 9. Be3 {[%clk 0:02:17]}  a5 {[%clk 0:02:40]} 10. a3 {[%clk 0:02:13]}  b5 {[%clk 0:02:37]} 11. d4 {[%clk 0:02:00]}  exd4 {[%clk 0:02:30]} 12. Qxd4 {[%clk 0:01:39]}  c5 {[%clk 0:02:24]} 13. Qd1 {[%clk 0:01:27]}  b4 {[%clk 0:02:21]} 14. axb4 {[%clk 0:01:24]}  cxb4 {[%clk 0:02:22]} 15. e5 {[%clk 0:01:15]}  bxc3 {[%clk 0:02:17]} 16. exd6 {[%clk 0:01:07]}  cxd6 {[%clk 0:02:14]} 17. bxc3 {[%clk 0:01:06]}  O-O {[%clk 0:02:13]} 18. Qd4 {[%clk 0:01:00]}  Rfc8 {[%clk 0:02:11]} 19. Nd2 {[%clk 0:00:58]}  Nd5 {[%clk 0:02:08]} 20. Ra3 {[%clk 0:00:52]}  f5 {[%clk 0:01:59]} 21. Kd1 {[%clk 0:00:42]}  Rab8 {[%clk 0:01:48]} 22. Re1 {[%clk 0:00:33]}  Qf7 {[%clk 0:01:47]} 23. Kc1 {[%clk 0:00:26]}  f4 {[%clk 0:01:44]} 24. Bxf4 {[%clk 0:00:15]}  Nxf4 {[%clk 0:01:45]} 25. Rxa5 {[%clk 0:00:12]}  Bc4 {[%clk 0:01:26]} 26. Ra7 {[%clk 0:00:10]}  Qf6 {[%clk 0:01:09]} 27. Qxf6 {[%clk 0:00:05]}  gxf6 {[%clk 0:01:10]} 28. Ne4 {[%clk 0:00:06]}  Nd5 {[%clk 0:00:45]} 29. Rd1 {[%clk 0:00:03]}  Ra8 {[%clk 0:00:39]} 30. Rxa8 {[%clk 0:00:02]}  Rxa8 {[%clk 0:00:39]} 31. Rxd5 {[%clk 0:00:02]}  Bxd5 {[%clk 0:00:36]} 32. Nxf6+ {[%clk 0:00:02]}  Kf7 {[%clk 0:00:35]} 33. Nxd5 {[%clk 0:00:03]}  Ra1+ {[%clk 0:00:27]} 34. Kd2 {[%clk 0:00:03]}  Rg1 {[%clk 0:00:27]} 35. Nf4 {[%clk 0:00:03]}  Kf6 {[%clk 0:00:27]} 36. g3 {[%clk 0:00:03]}  Ke5 {[%clk 0:00:24]} 37. Ke3 {[%clk 0:00:04]}  Re1+ {[%clk 0:00:23]} 38. Kf3 {[%clk 0:00:04]}  Kf6 {[%clk 0:00:19]} 39. Nd3 {[%clk 0:00:05]}  Ra1 {[%clk 0:00:17]} 40. Ke2 {[%clk 0:00:05]}  Ra2 {[%clk 0:00:18]} 41. Kd2 {[%clk 0:00:06]}  Ra8 {[%clk 0:00:18]} 42. c4 {[%clk 0:00:06]}  Rc8 {[%clk 0:00:18]} 43. Kc3 {[%clk 0:00:06]}  Re8 {[%clk 0:00:18]} 44. Kd2 {[%clk 0:00:06]}  Re4 {[%clk 0:00:17]} 45. Nb2 {[%clk 0:00:04]}  h5 {[%clk 0:00:15]} 46. f3 {[%clk 0:00:04]}  Re8 {[%clk 0:00:15]} 47. Nd3 {[%clk 0:00:04]}  Ra8 {[%clk 0:00:14]} 48. Nf4 {[%clk 0:00:04]}  h4 {[%clk 0:00:13]} 49. g4 {[%clk 0:00:04]}  Ra1 {[%clk 0:00:11]} 50. Nd5+ {[%clk 0:00:03]}  Ke5 {[%clk 0:00:11]} 51. Ne3 {[%clk 0:00:04]}  Rh1 {[%clk 0:00:09]} 52. Ke2 {[%clk 0:00:02]}  Rh2+ {[%clk 0:00:09]} 53. Kd3 {[%clk 0:00:02]}  Rxh3 {[%clk 0:00:10]} 54. Ke2 {[%clk 0:00:02]}  Rh2+ {[%clk 0:00:10]} 55. Kd3 {[%clk 0:00:02]}  h3 {[%clk 0:00:10]} 56. g5 {[%clk 0:00:02]}  Rh1 {[%clk 0:00:07]} 57. Ng4+ {[%clk 0:00:02]}  Kf5 {[%clk 0:00:07]} 58. Nf2 {[%clk 0:00:03]}  Rh2 {[%clk 0:00:08]} 59. Ke3 {[%clk 0:00:03]}  Kxg5 {[%clk 0:00:06]} 60. f4+ {[%clk 0:00:04]}  Kf5 {[%clk 0:00:06]} 61. Kf3 {[%clk 0:00:04]}  Kf6 {[%clk 0:00:03]} 62. Ng4+ {[%clk 0:00:04]}  Kf5 {[%clk 0:00:03]} 63. Nxh2 {[%clk 0:00:05]} 1-0


[Site "https://www.chess.com"]

[Event "Titled Tuesday Blitz March 07 Late 2023"]
[White "Bilych, Olexiy"]
[Black "Danielian, Vardan"]
[WhiteFideId "14156504"]
[BlackFideId "13301594"]
[WhiteElo "2320"]
[BlackElo "2566"]
[Result "1-0"]
[Round "09"]
[TimeControl "180+2"]
[Date "2023.03.07"]
[WhiteClock "0:01:56"]
[BlackClock "0:00:14"]

1. d4 {[%clk 0:03:00]}  Nf6 {[%clk 0:02:58]} 2. c4 {[%clk 0:03:01]}  g6 {[%clk 0:02:58]} 3. Nc3 {[%clk 0:03:01]}  Bg7 {[%clk 0:02:58]} 4. e4 {[%clk 0:03:02]}  O-O {[%clk 0:02:58]} 5. Nge2 {[%clk 0:03:02]}  d6 {[%clk 0:02:56]} 6. Ng3 {[%clk 0:03:03]}  a6 {[%clk 0:02:54]} 7. Ke2 {[%clk 0:03:01]}  b6 {[%clk 0:02:54]} 8. Ke1 {[%clk 0:03:01]}  c5 {[%clk 0:02:51]} 9. d5 {[%clk 0:03:00]}  b5 {[%clk 0:02:51]} 10. cxb5 {[%clk 0:03:00]}  Qa5 {[%clk 0:02:51]} 11. bxa6 {[%clk 0:02:59]}  Bxa6 {[%clk 0:02:50]} 12. Bxa6 {[%clk 0:03:00]}  Nxa6 {[%clk 0:02:49]} 13. Kf1 {[%clk 0:02:55]}  Nc7 {[%clk 0:02:48]} 14. Nge2 {[%clk 0:02:54]}  Rfb8 {[%clk 0:02:47]} 15. g3 {[%clk 0:02:54]}  Nb5 {[%clk 0:02:47]} 16. Kg2 {[%clk 0:02:53]}  Ng4 {[%clk 0:02:40]} 17. Nxb5 {[%clk 0:02:48]}  Qxb5 {[%clk 0:02:40]} 18. Nc3 {[%clk 0:02:48]}  Bxc3 {[%clk 0:02:37]} 19. bxc3 {[%clk 0:02:37]}  Ne5 {[%clk 0:02:37]} 20. Qc2 {[%clk 0:02:34]}  Qa4 {[%clk 0:02:00]} 21. Qe2 {[%clk 0:02:11]}  Qc4 {[%clk 0:01:23]} 22. Qxc4 {[%clk 0:02:10]}  Nxc4 {[%clk 0:01:24]} 23. Bh6 {[%clk 0:02:09]}  f6 {[%clk 0:01:16]} 24. Rhb1 {[%clk 0:02:06]}  g5 {[%clk 0:01:04]} 25. h4 {[%clk 0:02:04]}  gxh4 {[%clk 0:00:24]} 26. gxh4 {[%clk 0:02:05]}  Kf7 {[%clk 0:00:20]} 27. h5 {[%clk 0:02:00]}  f5 {[%clk 0:00:19]} 28. exf5 {[%clk 0:01:59]}  Rxb1 {[%clk 0:00:18]} 29. Rxb1 {[%clk 0:01:59]}  Rxa2 {[%clk 0:00:19]} 30. Rb8 {[%clk 0:01:58]}  Kf6 {[%clk 0:00:19]} 31. Rf8+ {[%clk 0:01:58]}  Ke5 {[%clk 0:00:19]} 32. Rf7 {[%clk 0:01:57]}  Ne3+ {[%clk 0:00:14]} 33. Bxe3 {[%clk 0:01:56]} 1-0


[Site "https://www.chess.com"]

[Event "Titled Tuesday Blitz March 07 Late 2023"]
[White "Timmermans, Mark"]
[Black "Paszewski, Mateusz"]
[WhiteFideId "1026399"]
[BlackFideId "1141058"]
[WhiteElo "2460"]
[BlackElo "2223"]
[Result "1-0"]
[Round "09"]
[TimeControl "180+2"]
[Date "2023.03.07"]
[WhiteClock "0:00:09"]
[BlackClock "0:00:01"]

1. e4 {[%clk 0:02:59]}  c5 {[%clk 0:02:59]} 2. Nf3 {[%clk 0:02:56]}  Nc6 {[%clk 0:02:59]} 3. d4 {[%clk 0:02:56]}  cxd4 {[%clk 0:02:59]} 4. Nxd4 {[%clk 0:02:57]}  g6 {[%clk 0:02:58]} 5. c4 {[%clk 0:02:57]}  Nf6 {[%clk 0:02:55]} 6. Nc3 {[%clk 0:02:56]}  d6 {[%clk 0:02:55]} 7. Be2 {[%clk 0:02:41]}  Bg7 {[%clk 0:02:47]} 8. Be3 {[%clk 0:02:40]}  O-O {[%clk 0:02:47]} 9. O-O {[%clk 0:02:38]}  Nxd4 {[%clk 0:02:39]} 10. Bxd4 {[%clk 0:02:39]}  Be6 {[%clk 0:02:39]} 11. Rc1 {[%clk 0:02:32]}  Qa5 {[%clk 0:02:39]} 12. b3 {[%clk 0:02:13]}  Rfc8 {[%clk 0:02:37]} 13. Nd5 {[%clk 0:01:39]}  Bxd5 {[%clk 0:02:26]} 14. exd5 {[%clk 0:01:40]}  Re8 {[%clk 0:02:04]} 15. Rc2 {[%clk 0:01:26]}  Nd7 {[%clk 0:02:03]} 16. Be3 {[%clk 0:01:25]}  Nc5 {[%clk 0:01:58]} 17. Bd2 {[%clk 0:01:19]}  Qa3 {[%clk 0:01:45]} 18. Bc1 {[%clk 0:01:17]}  Qb4 {[%clk 0:01:43]} 19. Bd2 {[%clk 0:01:11]}  Qa3 {[%clk 0:01:43]} 20. f4 {[%clk 0:01:08]}  Ne4 {[%clk 0:01:40]} 21. Be1 {[%clk 0:01:06]}  a5 {[%clk 0:01:33]} 22. Rf3 {[%clk 0:01:00]}  Qc5+ {[%clk 0:01:04]} 23. Kh1 {[%clk 0:01:01]}  Rec8 {[%clk 0:00:57]} 24. Bd3 {[%clk 0:00:57]}  Nf6 {[%clk 0:00:56]} 25. f5 {[%clk 0:00:53]}  Nd7 {[%clk 0:00:54]} 26. Rh3 {[%clk 0:00:50]}  Ne5 {[%clk 0:00:51]} 27. Bf2 {[%clk 0:00:46]}  Qc7 {[%clk 0:00:47]} 28. a4 {[%clk 0:00:45]}  Qd7 {[%clk 0:00:41]} 29. Re2 {[%clk 0:00:43]}  Re8 {[%clk 0:00:40]} 30. Bb1 {[%clk 0:00:41]}  gxf5 {[%clk 0:00:34]} 31. Bd4 {[%clk 0:00:41]}  e6 {[%clk 0:00:31]} 32. dxe6 {[%clk 0:00:34]}  Qxe6 {[%clk 0:00:30]} 33. Qf1 {[%clk 0:00:30]}  Qf6 {[%clk 0:00:11]} 34. Rf2 {[%clk 0:00:21]}  Qd8 {[%clk 0:00:05]} 35. Rxf5 {[%clk 0:00:20]}  Ng6 {[%clk 0:00:05]} 36. Bxg7 {[%clk 0:00:19]}  Kxg7 {[%clk 0:00:05]} 37. Rxf7+ {[%clk 0:00:19]}  Kg8 {[%clk 0:00:06]} 38. Rg7+ {[%clk 0:00:18]}  Kxg7 {[%clk 0:00:06]} 39. Bxg6 {[%clk 0:00:14]}  hxg6 {[%clk 0:00:06]} 40. Qa1+ {[%clk 0:00:13]}  Re5 {[%clk 0:00:06]} 41. Qc1 {[%clk 0:00:12]}  Qg5 {[%clk 0:00:05]} 42. Qc3 {[%clk 0:00:11]}  Re8 {[%clk 0:00:05]} 43. Rf3 {[%clk 0:00:10]}  Qf6 {[%clk 0:00:03]} 44. Rxf6 {[%clk 0:00:08]}  Kxf6 {[%clk 0:00:04]} 45. h4 {[%clk 0:00:08]}  Kg7 {[%clk 0:00:05]} 46. Qf3 {[%clk 0:00:08]}  Kh7 {[%clk 0:00:05]} 47. Kh2 {[%clk 0:00:08]}  R8e7 {[%clk 0:00:05]} 48. Qf6 {[%clk 0:00:09]}  Re2 {[%clk 0:00:05]} 49. Qxd6 {[%clk 0:00:09]}  R7e3 {[%clk 0:00:06]} 50. Qd7+ {[%clk 0:00:08]}  Kh6 {[%clk 0:00:06]} 51. Qxb7 {[%clk 0:00:08]}  Rc3 {[%clk 0:00:06]} 52. c5 {[%clk 0:00:06]}  Rxc5 {[%clk 0:00:05]} 53. Qf3 {[%clk 0:00:06]}  Rcc2 {[%clk 0:00:05]} 54. Qf4+ {[%clk 0:00:05]}  Kh7 {[%clk 0:00:05]} 55. Qg5 {[%clk 0:00:06]}  Rb2 {[%clk 0:00:06]} 56. Qd5 {[%clk 0:00:06]}  Kh6 {[%clk 0:00:06]} 57. Kh3 {[%clk 0:00:05]}  Re3+ {[%clk 0:00:06]} 58. g3 {[%clk 0:00:06]}  Rbxb3 {[%clk 0:00:05]} 59. Qg5+ {[%clk 0:00:06]}  Kh7 {[%clk 0:00:05]} 60. Qxa5 {[%clk 0:00:06]}  Rxg3+ {[%clk 0:00:05]} 61. Kh2 {[%clk 0:00:07]}  Rh3+ {[%clk 0:00:06]} 62. Kg2 {[%clk 0:00:07]}  Rbg3+ {[%clk 0:00:06]} 63. Kf2 {[%clk 0:00:07]}  Rf3+ {[%clk 0:00:07]} 64. Ke2 {[%clk 0:00:08]}  Rf5 {[%clk 0:00:07]} 65. Qa7+ {[%clk 0:00:08]}  Kh6 {[%clk 0:00:07]} 66. Qb8 {[%clk 0:00:08]}  Rxh4 {[%clk 0:00:07]} 67. Qh8+ {[%clk 0:00:08]}  Kg5 {[%clk 0:00:08]} 68. Qd8+ {[%clk 0:00:09]}  Kg4 {[%clk 0:00:08]} 69. a5 {[%clk 0:00:09]}  Re5+ {[%clk 0:00:08]} 70. Kf2 {[%clk 0:00:09]}  Rh2+ {[%clk 0:00:07]} 71. Kg1 {[%clk 0:00:09]}  Rhe2 {[%clk 0:00:08]} 72. a6 {[%clk 0:00:09]}  Kf3 {[%clk 0:00:08]} 73. Qd3+ {[%clk 0:00:08]}  R5e3 {[%clk 0:00:08]} 74. Qd5+ {[%clk 0:00:08]}  Kf4 {[%clk 0:00:09]} 75. Qd6+ {[%clk 0:00:08]}  Re5 {[%clk 0:00:09]} 76. a7 {[%clk 0:00:08]}  Re1+ {[%clk 0:00:08]} 77. Kg2 {[%clk 0:00:08]}  Re2+ {[%clk 0:00:08]} 78. Kh3 {[%clk 0:00:09]}  Re3+ {[%clk 0:00:08]} 79. Kh4 {[%clk 0:00:08]}  Kf3 {[%clk 0:00:01]} 80. a8=Q+ {[%clk 0:00:08]}  R3e4+ {[%clk 0:00:02]} 81. Kh3 {[%clk 0:00:08]}  Kf2 {[%clk 0:00:01]} 82. Qf6+ {[%clk 0:00:08]}  Rf5 {[%clk 0:00:01]} 83. Qb2+ {[%clk 0:00:07]}  Re2 {[%clk 0:00:01]} 84. Qg2+ {[%clk 0:00:08]}  Ke3 {[%clk 0:00:01]} 85. Qbxe2+ {[%clk 0:00:09]} 1-0


[Site "https://www.chess.com"]

[Event "Titled Tuesday Blitz March 07 Late 2023"]
[White "Janaszak, Dawid"]
[Black "Shapiro, David"]
[WhiteFideId "1119206"]
[BlackFideId "24133523"]
[WhiteElo "2220"]
[BlackElo "2300"]
[Result "0-1"]
[Round "09"]
[TimeControl "180+2"]
[Date "2023.03.07"]
[WhiteClock "0:00:26"]
[BlackClock "0:01:00"]

1. e4 {[%clk 0:02:58]}  e5 {[%clk 0:02:58]} 2. Nf3 {[%clk 0:02:56]}  Nf6 {[%clk 0:02:59]} 3. Nxe5 {[%clk 0:02:52]}  d6 {[%clk 0:02:59]} 4. Nf3 {[%clk 0:02:53]}  Nxe4 {[%clk 0:03:00]} 5. Nc3 {[%clk 0:02:52]}  Nxc3 {[%clk 0:03:01]} 6. dxc3 {[%clk 0:02:53]}  Be7 {[%clk 0:03:01]} 7. Be3 {[%clk 0:02:53]}  Nd7 {[%clk 0:02:59]} 8. Bd3 {[%clk 0:02:53]}  Ne5 {[%clk 0:02:59]} 9. Nxe5 {[%clk 0:02:50]}  dxe5 {[%clk 0:03:00]} 10. Qh5 {[%clk 0:02:50]}  Bf6 {[%clk 0:02:46]} 11. O-O-O {[%clk 0:02:50]}  Qe7 {[%clk 0:02:45]} 12. f4 {[%clk 0:02:38]}  e4 {[%clk 0:02:42]} 13. Bb5+ {[%clk 0:02:35]}  c6 {[%clk 0:02:41]} 14. Ba4 {[%clk 0:02:22]}  Be6 {[%clk 0:02:21]} 15. Bc5 {[%clk 0:02:22]}  Qc7 {[%clk 0:02:22]} 16. Rd6 {[%clk 0:02:18]}  O-O {[%clk 0:02:06]} 17. f5 {[%clk 0:02:05]}  Bxa2 {[%clk 0:01:55]} 18. Rxf6 {[%clk 0:01:51]}  Qf4+ {[%clk 0:01:53]} 19. Kd1 {[%clk 0:01:44]}  gxf6 {[%clk 0:01:53]} 20. Bd4 {[%clk 0:00:45]}  c5 {[%clk 0:01:31]} 21. g3 {[%clk 0:00:41]}  Qd6 {[%clk 0:01:15]} 22. Qg4+ {[%clk 0:00:26]}  Kh8 {[%clk 0:01:15]} 23. Qf4 {[%clk 0:00:26]}  Rad8 {[%clk 0:01:00]} 0-1


[Site "https://www.chess.com"]

[Event "Titled Tuesday Blitz March 07 Late 2023"]
[White "Korchmar, Vasiliy"]
[Black "Reprintsev, Alexander"]
[WhiteFideId "24131750"]
[BlackFideId "14100541"]
[WhiteElo "2370"]
[BlackElo "2229"]
[Result "1-0"]
[Round "09"]
[TimeControl "180+2"]
[Date "2023.03.07"]
[WhiteClock "0:00:49"]
[BlackClock "0:00:02"]

1. e4 {[%clk 0:02:55]}  e5 {[%clk 0:01:21]} 2. Nf3 {[%clk 0:02:53]}  Nc6 {[%clk 0:01:21]} 3. Bb5 {[%clk 0:02:53]}  Bc5 {[%clk 0:01:20]} 4. O-O {[%clk 0:02:52]}  d6 {[%clk 0:01:19]} 5. d3 {[%clk 0:02:41]}  Ne7 {[%clk 0:01:15]} 6. c3 {[%clk 0:02:37]}  Bg4 {[%clk 0:01:09]} 7. h3 {[%clk 0:02:36]}  Bxf3 {[%clk 0:01:08]} 8. Qxf3 {[%clk 0:02:36]}  O-O {[%clk 0:01:07]} 9. a4 {[%clk 0:02:03]}  Qc8 {[%clk 0:00:46]} 10. Bxc6 {[%clk 0:01:53]}  bxc6 {[%clk 0:00:45]} 11. b4 {[%clk 0:01:53]}  Bb6 {[%clk 0:00:45]} 12. a5 {[%clk 0:01:53]}  f5 {[%clk 0:00:33]} 13. axb6 {[%clk 0:01:50]}  fxe4 {[%clk 0:00:33]} 14. Qxe4 {[%clk 0:01:49]}  axb6 {[%clk 0:00:33]} 15. Rxa8 {[%clk 0:01:47]}  Qxa8 {[%clk 0:00:34]} 16. Bg5 {[%clk 0:01:43]}  Nd5 {[%clk 0:00:33]} 17. Qg4 {[%clk 0:01:31]}  Qe8 {[%clk 0:00:27]} 18. Bd2 {[%clk 0:01:27]}  Nf6 {[%clk 0:00:21]} 19. Qg3 {[%clk 0:01:22]}  Kh8 {[%clk 0:00:20]} 20. c4 {[%clk 0:01:21]}  Qe6 {[%clk 0:00:20]} 21. Nc3 {[%clk 0:01:21]}  Ra8 {[%clk 0:00:19]} 22. Bg5 {[%clk 0:01:16]}  Nd7 {[%clk 0:00:17]} 23. Be3 {[%clk 0:01:13]}  Ra3 {[%clk 0:00:17]} 24. Rc1 {[%clk 0:01:12]}  Qf5 {[%clk 0:00:15]} 25. Qh4 {[%clk 0:01:04]}  Nf6 {[%clk 0:00:14]} 26. Ne4 {[%clk 0:01:02]}  Rxd3 {[%clk 0:00:07]} 27. Ra1 {[%clk 0:01:03]}  Ng8 {[%clk 0:00:06]} 28. Ra8 {[%clk 0:00:59]}  Rd1+ {[%clk 0:00:05]} 29. Kh2 {[%clk 0:01:00]}  h6 {[%clk 0:00:05]} 30. Qd8 {[%clk 0:00:59]}  Qf7 {[%clk 0:00:05]} 31. Qf8 {[%clk 0:00:49]}  Qxc4 {[%clk 0:00:04]} 32. Bxh6 {[%clk 0:00:49]}  Kh7 {[%clk 0:00:02]} 33. Qxg7# {[%clk 0:00:49]} 1-0


[Site "https://www.chess.com"]

[Event "Titled Tuesday Blitz March 07 Late 2023"]
[White "Papasimakopoulos, Alexandros"]
[Black "Ezat, Mohamed"]
[WhiteFideId "4244125"]
[BlackFideId "10600906"]
[WhiteElo "2359"]
[BlackElo "2386"]
[Result "1-0"]
[Round "09"]
[TimeControl "180+2"]
[Date "2023.03.07"]
[WhiteClock "0:00:13"]
[BlackClock "0:00:13"]

1. d4 {[%clk 0:03:00]}  Nf6 {[%clk 0:02:55]} 2. c4 {[%clk 0:03:01]}  g6 {[%clk 0:02:55]} 3. Nc3 {[%clk 0:03:01]}  Bg7 {[%clk 0:02:55]} 4. Bg5 {[%clk 0:03:01]}  d6 {[%clk 0:02:56]} 5. e3 {[%clk 0:03:02]}  h6 {[%clk 0:02:55]} 6. Bh4 {[%clk 0:03:02]}  O-O {[%clk 0:02:56]} 7. Bg3 {[%clk 0:03:02]}  Nbd7 {[%clk 0:02:55]} 8. Be2 {[%clk 0:03:02]}  e5 {[%clk 0:02:54]} 9. dxe5 {[%clk 0:02:58]}  Nxe5 {[%clk 0:02:54]} 10. Nf3 {[%clk 0:02:58]}  Nxf3+ {[%clk 0:02:49]} 11. Bxf3 {[%clk 0:02:58]}  Be6 {[%clk 0:02:48]} 12. Qa4 {[%clk 0:02:46]}  Nd7 {[%clk 0:02:46]} 13. O-O {[%clk 0:02:33]}  Nc5 {[%clk 0:02:27]} 14. Qc2 {[%clk 0:02:33]}  Bxc4 {[%clk 0:02:21]} 15. Rfd1 {[%clk 0:02:33]}  Be6 {[%clk 0:02:08]} 16. Rac1 {[%clk 0:02:10]}  a5 {[%clk 0:02:07]} 17. Nd5 {[%clk 0:02:07]}  a4 {[%clk 0:01:55]} 18. Nxc7 {[%clk 0:02:01]}  Qxc7 {[%clk 0:01:52]} 19. Bxd6 {[%clk 0:02:02]}  Qa5 {[%clk 0:01:49]} 20. Qxc5 {[%clk 0:01:57]}  Qxc5 {[%clk 0:01:48]} 21. Bxc5 {[%clk 0:01:57]}  Rfd8 {[%clk 0:01:46]} 22. Bxb7 {[%clk 0:01:53]}  Rxd1+ {[%clk 0:01:44]} 23. Rxd1 {[%clk 0:01:54]}  Rb8 {[%clk 0:01:44]} 24. Bf3 {[%clk 0:01:09]}  Rxb2 {[%clk 0:01:40]} 25. a3 {[%clk 0:01:07]}  Rb5 {[%clk 0:01:29]} 26. Bd6 {[%clk 0:01:00]}  Rb2 {[%clk 0:01:14]} 27. h4 {[%clk 0:00:52]}  h5 {[%clk 0:01:10]} 28. Bd5 {[%clk 0:00:37]}  Bf5 {[%clk 0:00:45]} 29. e4 {[%clk 0:00:26]}  Bd7 {[%clk 0:00:44]} 30. Bb4 {[%clk 0:00:25]}  Bb5 {[%clk 0:00:36]} 31. Rc1 {[%clk 0:00:21]}  Be5 {[%clk 0:00:34]} 32. Bc5 {[%clk 0:00:18]}  Bd3 {[%clk 0:00:32]} 33. g3 {[%clk 0:00:17]}  Be2 {[%clk 0:00:31]} 34. Bc6 {[%clk 0:00:15]}  Bf3 {[%clk 0:00:30]} 35. Bxa4 {[%clk 0:00:14]}  Bxe4 {[%clk 0:00:26]} 36. Re1 {[%clk 0:00:13]}  Bf3 {[%clk 0:00:26]} 37. Bb4 {[%clk 0:00:08]}  Bc7 {[%clk 0:00:14]} 38. Bc5 {[%clk 0:00:07]}  Rd2 {[%clk 0:00:13]} 39. Bb5 {[%clk 0:00:05]}  Rd5 {[%clk 0:00:12]} 40. Rc1 {[%clk 0:00:06]}  Ba5 {[%clk 0:00:11]} 41. a4 {[%clk 0:00:06]}  Bd2 {[%clk 0:00:10]} 42. Rc2 {[%clk 0:00:05]}  Bb4 {[%clk 0:00:11]} 43. Bxb4 {[%clk 0:00:04]}  Rd1+ {[%clk 0:00:11]} 44. Bf1 {[%clk 0:00:05]}  Be4 {[%clk 0:00:11]} 45. Rd2 {[%clk 0:00:05]}  Rb1 {[%clk 0:00:12]} 46. Rd4 {[%clk 0:00:05]}  Bf3 {[%clk 0:00:11]} 47. Bc3 {[%clk 0:00:05]}  f6 {[%clk 0:00:09]} 48. Rd2 {[%clk 0:00:04]}  Bc6 {[%clk 0:00:09]} 49. Bxf6 {[%clk 0:00:04]}  Bxa4 {[%clk 0:00:08]} 50. Kg2 {[%clk 0:00:03]}  Bc6+ {[%clk 0:00:09]} 51. f3 {[%clk 0:00:03]}  Rb3 {[%clk 0:00:09]} 52. Rf2 {[%clk 0:00:03]}  Kf7 {[%clk 0:00:08]} 53. Bg5 {[%clk 0:00:04]}  Ke6 {[%clk 0:00:08]} 54. Bc4+ {[%clk 0:00:04]}  Bd5 {[%clk 0:00:09]} 55. Bxb3 {[%clk 0:00:05]}  Bxb3 {[%clk 0:00:10]} 56. Rd2 {[%clk 0:00:05]}  Bd5 {[%clk 0:00:11]} 57. Kf2 {[%clk 0:00:06]}  Bc6 {[%clk 0:00:10]} 58. Ke3 {[%clk 0:00:06]}  Kf5 {[%clk 0:00:11]} 59. Rd4 {[%clk 0:00:06]}  Bb7 {[%clk 0:00:11]} 60. Rd6 {[%clk 0:00:06]}  Bxf3 {[%clk 0:00:10]} 61. Rf6+ {[%clk 0:00:06]}  Ke5 {[%clk 0:00:10]} 62. Kxf3 {[%clk 0:00:07]}  Kd5 {[%clk 0:00:11]} 63. Rxg6 {[%clk 0:00:07]}  Ke5 {[%clk 0:00:12]} 64. Rf6 {[%clk 0:00:08]}  Kd5 {[%clk 0:00:12]} 65. Kf4 {[%clk 0:00:09]}  Kd4 {[%clk 0:00:12]} 66. Kf5 {[%clk 0:00:10]}  Kd3 {[%clk 0:00:13]} 67. Kg6 {[%clk 0:00:10]}  Ke4 {[%clk 0:00:12]} 68. Kxh5 {[%clk 0:00:11]}  Ke5 {[%clk 0:00:13]} 69. Kg6 {[%clk 0:00:12]}  Kd5 {[%clk 0:00:13]} 70. h5 {[%clk 0:00:13]} 1-0


[Site "https://www.chess.com"]

[Event "Titled Tuesday Blitz March 07 Late 2023"]
[White "Martinez Ramirez, Lennis"]
[Black "Golubev, Mikhail"]
[WhiteFideId "3509079"]
[BlackFideId "14100983"]
[WhiteElo "2439"]
[BlackElo "2374"]
[Result "1-0"]
[Round "09"]
[TimeControl "180+2"]
[Date "2023.03.07"]
[WhiteClock "0:01:47"]
[BlackClock "0:00:01"]

1. c4 {[%clk 0:03:00]}  g6 {[%clk 0:01:11]} 2. d4 {[%clk 0:02:55]}  Bg7 {[%clk 0:01:11]} 3. Nc3 {[%clk 0:02:56]}  d6 {[%clk 0:01:11]} 4. e4 {[%clk 0:02:56]}  Nf6 {[%clk 0:01:11]} 5. h3 {[%clk 0:02:56]}  Nbd7 {[%clk 0:01:10]} 6. Nf3 {[%clk 0:02:57]}  e5 {[%clk 0:01:10]} 7. d5 {[%clk 0:02:57]}  Nc5 {[%clk 0:01:10]} 8. Bd3 {[%clk 0:02:57]}  a5 {[%clk 0:01:08]} 9. Bc2 {[%clk 0:02:57]}  O-O {[%clk 0:01:07]} 10. Be3 {[%clk 0:02:58]}  Nfd7 {[%clk 0:01:02]} 11. g4 {[%clk 0:02:58]}  Qe7 {[%clk 0:00:59]} 12. h4 {[%clk 0:02:57]}  Nb6 {[%clk 0:00:56]} 13. Nd2 {[%clk 0:02:55]}  Bd7 {[%clk 0:00:51]} 14. h5 {[%clk 0:02:55]}  Bf6 {[%clk 0:00:48]} 15. Qf3 {[%clk 0:02:45]}  Bg5 {[%clk 0:00:45]} 16. O-O-O {[%clk 0:02:44]}  Bxe3 {[%clk 0:00:43]} 17. Qxe3 {[%clk 0:02:45]}  g5 {[%clk 0:00:40]} 18. h6 {[%clk 0:02:45]}  f6 {[%clk 0:00:38]} 19. f3 {[%clk 0:02:45]}  a4 {[%clk 0:00:36]} 20. a3 {[%clk 0:02:42]}  Rfc8 {[%clk 0:00:34]} 21. Kb1 {[%clk 0:02:35]}  c6 {[%clk 0:00:34]} 22. Rc1 {[%clk 0:02:27]}  cxd5 {[%clk 0:00:32]} 23. exd5 {[%clk 0:02:28]}  Be8 {[%clk 0:00:30]} 24. Bf5 {[%clk 0:02:26]}  Bg6 {[%clk 0:00:29]} 25. Bxg6 {[%clk 0:02:26]}  hxg6 {[%clk 0:00:29]} 26. h7+ {[%clk 0:02:27]}  Kg7 {[%clk 0:00:27]} 27. Nce4 {[%clk 0:02:27]}  Nxe4 {[%clk 0:00:24]} 28. fxe4 {[%clk 0:02:25]}  Nd7 {[%clk 0:00:23]} 29. Qh3 {[%clk 0:02:21]}  Kh8 {[%clk 0:00:17]} 30. Rcf1 {[%clk 0:02:18]}  Nc5 {[%clk 0:00:15]} 31. Qe3 {[%clk 0:02:16]}  Kg7 {[%clk 0:00:14]} 32. Rf3 {[%clk 0:02:16]}  Rab8 {[%clk 0:00:13]} 33. Rhf1 {[%clk 0:02:16]}  Rf8 {[%clk 0:00:13]} 34. Qf2 {[%clk 0:02:12]}  Nd7 {[%clk 0:00:07]} 35. Rh3 {[%clk 0:02:10]}  Kh8 {[%clk 0:00:07]} 36. Qa7 {[%clk 0:02:07]}  Nc5 {[%clk 0:00:06]} 37. Qb6 {[%clk 0:02:06]}  Ra8 {[%clk 0:00:06]} 38. Ka2 {[%clk 0:02:05]}  Ra6 {[%clk 0:00:06]} 39. Qb5 {[%clk 0:02:05]}  Qc7 {[%clk 0:00:03]} 40. Qb4 {[%clk 0:02:04]}  Rb6 {[%clk 0:00:03]} 41. Qc3 {[%clk 0:02:04]}  Nb3 {[%clk 0:00:03]} 42. Rf2 {[%clk 0:01:51]}  Nxd2 {[%clk 0:00:02]} 43. Qxd2 {[%clk 0:01:47]}  Qxc4+ {[%clk 0:00:02]} 44. Ka1 {[%clk 0:01:47]}  Qxe4 {[%clk 0:00:02]} 45. Rhf3 {[%clk 0:01:47]}  f5 {[%clk 0:00:01]} 46. gxf5 {[%clk 0:01:47]} 1-0


[Site "https://www.chess.com"]